{"text_format":"1","workbook":"xlsx","n_sheets":1,"sheets":["Hoja1"],"not_rendered":{"charts":0,"images":0,"macros":1,"external_links":0,"defined_names":0,"comments":0,"pivot_tables":0},"unopened":[],"bounds":{"document_bytes":16777216,"sheet_cells":100000,"rows_first":2000,"rows_last":500,"rows_between":2000,"halvings":0,"cell_chars":16384,"cell_head_chars":4096},"cells_cut":0,"cells_raw":0,"read":"whole","date_system":"1900"}

{"sheet":"Hoja1","index":0,"n_rows":29,"n_cols":24,"rows_kept":29,"cut":false,"hidden":false,"merged":[[1,14,2,15],[1,11,1,12],[0,14,0,23],[1,16,1,21],[2,16,2,17],[1,23,2,23],[0,1,0,12],[1,3,1,4],[2,3,2,4],[2,5,2,6],[1,5,1,6],[1,22,2,22],[2,18,2,19],[2,20,2,21],[1,7,1,10],[2,7,2,8],[2,9,2,10],[2,11,2,12],[1,1,2,2]]}
[null,"COMPETENCIA MATEMÁTICA CIENCIA E TECNOLOXÍA 3º PRIMARIA",null,null,null,null,null,null,null,null,null,null,null,null,"COMPETENCIA MATEMÁTICA CIENCIA E TECNOLOXÍA 3º PRIMARIA"]
[null,"3º A",null,"C. DA NATUREZA",null,"CIENCIAS SOCIAIS",null,"ED. PLÁSTICA",null,null,null,"L. GALEGA",null,null,"3º A",null,"MATEMÁTICAS",null,null,null,null,null,"NOTA MEDIA","CUALIFICACIÓN"]
[null,null,null,"3º-CNB2.3.2 - Diferencia entre dieta equilibrada e non equilibrada e elabora un menú saudable na escola.",null,"3º-CSB2.6.1 - Orientase no espazo empregando algunha técnica de orientación e instrumento.",null,"3º-EPB2.1.10 - Crea imaxes tridimensionais co recorte e o pegado.",null,"3º-EPB2.1.9 - Fai composicións correctamente a partir do eixe de simetría.",null,"3º-LGB2.2.1 - Interpreta e comprende, de maneira xeral, a información de sinxelos gráficos e ilustracións, relacionando esta co contido do texto que a acompaña",null,null,null,null,"3º-MTB2.2.3 - Descompón, compón e redondea números naturais, interpretando o valor de posición de cada unha das súas cifras.",null,"3º-MTB2.4.1 - Resolve problemas que impliquen o dominio dos contidos traballados, empregando estratexias heurísticas, de razoamento.",null,"3º-MTB5.1.3 - Interpreta gráficas de táboas extraendo a información explícita."]
[null,null,"ALUMNO /A","Nota",0.05,"Nota",0.05,"Nota",0.05,"Nota",0.05,"Nota",0.1,null,null,"ALUMNO /A","Nota",0.15,"Nota",0.4,"Nota",0.15,1]
[null,1,null,null,{"$f":"D5*0.05","v":0},null,{"$f":"F5*0.05","v":0},null,{"$f":"H5*0.05","v":0},null,{"$f":"J5*0.05","v":0},null,{"$f":"L5*0.1","v":0},null,1,null,null,{"$f":"Q5*0.15","v":0},null,{"$f":"S5*0.4","v":0},null,{"$f":"U5*0.15","v":0},{"$f":"SUM(V5,T5,R5,M5,K5,I5,G5,E5,)","v":0},{"$f":"IF(W5<5,\"INSUFICIENTE\",IF(W5<6,\"SUFICIENTE\",IF(W5<7,\"BIEN\",IF(W5<9,\"NOTABLE\",\"SOBRESALIENTE\"))))","v":"INSUFICIENTE"}]
[null,2,null,null,{"$f":"D6*0.05","v":0},null,{"$f":"F6*0.05","v":0},null,{"$f":"H6*0.05","v":0},null,{"$f":"J6*0.05","v":0},null,{"$f":"L6*0.1","v":0},null,2,null,null,{"$f":"Q6*0.15","v":0},null,{"$f":"S6*0.4","v":0},null,{"$f":"U6*0.15","v":0},{"$f":"SUM(V6,T6,R6,M6,K6,I6,G6,E6,)","v":0},{"$f":"IF(W6<5,\"INSUFICIENTE\",IF(W6<6,\"SUFICIENTE\",IF(W6<7,\"BIEN\",IF(W6<9,\"NOTABLE\",\"SOBRESALIENTE\"))))","v":"INSUFICIENTE"}]
[null,3,null,null,0,null,0,null,0,null,0,null,0,null,3,null,null,0,null,0,null,0,0,"INSUFICIENTE"]
[null,4,null,null,0,null,0,null,0,null,0,null,0,null,4,null,null,0,null,0,null,0,0,"INSUFICIENTE"]
[null,5,null,null,0,null,0,null,0,null,0,null,0,null,5,null,null,0,null,0,null,0,0,"INSUFICIENTE"]
[null,{"$f":"B9+1","v":6},null,null,0,null,0,null,0,null,0,null,0,null,{"$f":"O9+1","v":6},null,null,0,null,0,null,0,0,"INSUFICIENTE"]
[null,{"$f":"B10+1","v":7},null,null,0,null,0,null,0,null,0,null,0,null,{"$f":"O10+1","v":7},null,null,0,null,0,null,0,0,"INSUFICIENTE"]
[null,8,null,null,0,null,0,null,0,null,0,null,0,null,8,null,null,0,null,0,null,0,0,"INSUFICIENTE"]
[null,9,null,null,0,null,0,null,0,null,0,null,0,null,9,null,null,0,null,0,null,0,0,"INSUFICIENTE"]
[null,10,null,null,0,null,0,null,0,null,0,null,0,null,10,null,null,0,null,0,null,0,0,"INSUFICIENTE"]
[null,11,null,null,0,null,0,null,0,null,0,null,0,null,11,null,null,0,null,0,null,0,0,"INSUFICIENTE"]
[null,12,null,null,0,null,0,null,0,null,0,null,0,null,12,null,null,0,null,0,null,0,0,"INSUFICIENTE"]
[null,13,null,null,0,null,0,null,0,null,0,null,0,null,13,null,null,0,null,0,null,0,0,"INSUFICIENTE"]
[null,14,null,null,0,null,0,null,0,null,0,null,0,null,14,null,null,0,null,0,null,0,0,"INSUFICIENTE"]
[null,15,null,null,0,null,0,null,0,null,0,null,0,null,15,null,null,0,null,0,null,0,0,"INSUFICIENTE"]
[null,16,null,null,0,null,0,null,0,null,0,null,0,null,16,null,null,0,null,0,null,0,0,"INSUFICIENTE"]
[null,17,null,null,0,null,0,null,0,null,0,null,0,null,17,null,null,0,null,0,null,0,0,"INSUFICIENTE"]
[null,18,null,null,0,null,0,null,0,null,0,null,0,null,18,null,null,0,null,0,null,0,0,"INSUFICIENTE"]
[null,19,null,null,0,null,0,null,0,null,0,null,0,null,19,null,null,0,null,0,null,0,0,"INSUFICIENTE"]
[null,20,null,null,0,null,0,null,0,null,0,null,0,null,20,null,null,0,null,0,null,0,0,"INSUFICIENTE"]
[null,21,null,null,0,null,0,null,0,null,0,null,0,null,21,null,null,0,null,0,null,0,0,"INSUFICIENTE"]
[null,22,null,null,0,null,0,null,0,null,0,null,0,null,22,null,null,0,null,0,null,0,0,"INSUFICIENTE"]
[null,23,null,null,0,null,0,null,0,null,0,null,0,null,23,null,null,0,null,0,null,0,0,"INSUFICIENTE"]
[null,24,null,null,0,null,0,null,0,null,0,null,0,null,24,null,null,0,null,0,null,0,0,"INSUFICIENTE"]
[null,25,null,null,{"$f":"D29*0.05","v":0},null,{"$f":"F29*0.05","v":0},null,{"$f":"H29*0.05","v":0},null,0,null,{"$f":"L29*0.1","v":0},null,25,null,null,{"$f":"Q29*0.15","v":0},null,{"$f":"S29*0.4","v":0},null,{"$f":"U29*0.15","v":0},{"$f":"SUM(V29,T29,R29,M29,K29,I29,G29,E29,)","v":0},{"$f":"IF(W29<5,\"INSUFICIENTE\",IF(W29<6,\"SUFICIENTE\",IF(W29<7,\"BIEN\",IF(W29<9,\"NOTABLE\",\"SOBRESALIENTE\"))))","v":"INSUFICIENTE"}]